bitfinex-derivatives/quotes_BTCF0:USTF0_20260107
["timestamp","ask_amount","ask_price","bid_price","bid_amount"]
[1767767389602,0.0916,92863.0,92851.0,0.16105131]
[1767767389909,0.010776,92860.0,92843.0,0.25857355]
[1767767390212,0.010776,92860.0,92852.0,0.16181708]
[1767767390413,0.010776,92860.0,92849.0,0.16181708]
[1767767390619,0.0916,92863.0,92845.0,0.16181708]
[1767767390818,0.0916,92863.0,92850.0,0.16181708]
[1767767391111,0.0916,92863.0,92848.0,0.16181708]
[1767767391312,0.010776,92860.0,92845.0,0.25935356]
[1767767391515,0.010776,92860.0,92845.0,0.09752224]
[1767767391712,0.010776,92860.0,92845.0,0.25935356]
[1767767393415,0.010776,92860.0,92845.0,0.34713935]
[1767767395818,0.102375,92863.0,92845.0,0.34713935]
[1767767396014,0.102375,92863.0,92846.0,0.09752224]
[1767767396317,0.102375,92863.0,92847.0,0.16192471]
[1767767396723,0.102375,92863.0,92849.0,0.09752224]
[1767767397110,0.102375,92863.0,92850.0,0.16192471]
[1767767397311,0.102375,92863.0,92850.0,0.25308318]
[1767767400223,0.0916,92863.0,92853.0,0.13034173]
[1767767400408,0.0916,92863.0,92853.0,0.09804621]
[1767767400612,0.0916,92863.0,92854.0,0.16109752]
[1767767400811,0.0916,92863.0,92854.0,0.25914373]
[1767767401013,0.010774,92869.0,92856.0,0.09804621]
[1767767401217,0.09156,92868.0,92860.0,0.09804621]
[1767767402124,0.09156,92867.0,92860.0,0.09804621]
[1767767402422,0.09156,92869.0,92861.0,0.09955054]
[1767767403118,0.025774,92875.0,92862.0,0.13193194]
[1767767403320,0.09156,92874.0,92862.0,0.13193194]
[1767767403820,0.010774,92873.0,92862.0,0.09955054]
[1767767404019,0.010774,92871.0,92862.0,0.09955054]
[1767767404918,0.010774,92871.0,92858.0,0.12353987]
[1767767405315,0.010774,92871.0,92858.0,0.22309041]
[1767767405823,0.010774,92871.0,92859.0,0.0323814]
[1767767409525,0.010774,92871.0,92860.0,0.09115847]
[1767767410925,0.010774,92871.0,92859.0,0.0323814]
[1767767411127,0.010774,92871.0,92860.0,0.09115847]
[1767767411317,0.010774,92871.0,92861.0,0.0323814]
[1767767411517,0.010774,92871.0,92862.0,0.0323814]
[1767767411727,0.010774,92871.0,92861.0,0.09955054]
[1767767412625,0.09156,92872.0,92861.0,0.13193194]
[1767767414440,0.010774,92874.0,92866.0,0.0323814]
[1767767414628,0.102334,92874.0,92866.0,0.09955054]
[1767767415228,0.102334,92874.0,92864.0,0.0323814]
[1767767416427,0.09156,92874.0,92864.0,0.0323814]
[1767767418730,0.015,92875.0,92864.0,0.0323814]
[1767767418927,0.09156,92874.0,92865.0,0.0323814]
[1767767419229,0.010773,92883.0,92868.0,0.13193194]
[1767767419434,0.09156,92878.0,92870.0,0.0323814]
[1767767421427,0.010773,92883.0,92870.0,0.0323814]
[1767767421732,0.09156,92882.0,92870.0,0.0323814]
[1767767422336,0.09156,92882.0,92869.0,0.19070901]
[1767767422520,0.09156,92882.0,92869.0,0.24874713]
[1767767426332,0.010773,92883.0,92869.0,0.24874713]
[1767767426523,0.102333,92883.0,92869.0,0.24874713]
[1767767428838,0.010773,92881.0,92869.0,0.24874713]
[1767767430324,0.09156,92883.0,92869.0,0.28112853]
[1767767432140,0.010773,92882.0,92870.0,0.02802334]
[1767767432341,0.010773,92882.0,92869.0,0.24874713]
[1767767434442,0.010773,92882.0,92869.0,0.27677047]
[1767767435840,0.010773,92882.0,92869.0,0.185612]
[1767767436039,0.09694782,92902.0,92878.0,0.12349534]
[1767767436244,0.010766,92938.0,92890.0,0.02802334]
[1767767436245,0.09156,92900.0,92890.0,0.02802334]
[1767767436540,0.010771,92901.0,92890.0,0.02802334]
[1767767436541,0.010771,92901.0,92892.0,0.09115847]
[1767767436947,0.010771,92901.0,92890.0,0.11918181]
[1767767437143,0.010771,92898.0,92890.0,0.09115847]
[1767767437841,0.010771,92898.0,92890.0,0.10213575]
[1767767439044,0.010771,92898.0,92890.0,0.09115847]
[1767767440844,0.010771,92896.0,92888.0,0.09115847]
[1767767441345,0.010772,92894.0,92884.0,0.095472]
[1767767441540,0.010771,92897.0,92884.0,0.095472]
[1767767441748,0.010771,92897.0,92887.0,0.09115847]
[1767767442636,0.010771,92897.0,92885.0,0.02802334]
[1767767443449,0.010771,92897.0,92885.0,0.11622804]
[1767767444253,0.010771,92897.0,92885.0,0.21170004]
[1767767445748,0.010771,92897.0,92886.0,0.02802334]
[1767767447548,0.010771,92897.0,92886.0,0.12349534]
[1767767448753,0.18850782,92905.0,92886.0,0.12349534]
[1767767449055,0.010772,92894.0,92886.0,0.095472]
[1767767449238,0.18850782,92905.0,92886.0,0.095472]
[1767767449444,0.010772,92892.0,92886.0,0.095472]
[1767767449644,0.1245359,92903.0,92882.0,0.02802334]
[1767767450146,0.010772,92892.0,92882.0,0.086237]
[1767767450351,0.010773,92881.0,92872.0,0.05795923]
[1767767450652,0.1245359,92886.0,92873.0,0.14367362]
[1767767451043,0.010773,92882.0,92864.0,0.17676797]
[1767767451255,0.010773,92882.0,92865.0,0.16123726]
[1767767451751,0.09156,92889.0,92866.0,0.095472]
[1767767451958,0.010773,92885.0,92866.0,0.095472]
[1767767452150,0.010773,92885.0,92868.0,0.095472]
[1767767452357,0.010773,92885.0,92871.0,0.02802334]
[1767767452653,0.010773,92885.0,92872.0,0.16216442]
[1767767452954,0.010773,92885.0,92872.0,0.19018776]
[1767767453254,0.010773,92885.0,92872.0,0.02802334]
[1767767453551,0.010773,92885.0,92873.0,0.16210815]
[1767767454648,0.010772,92889.0,92873.0,0.16210815]
[1767767454851,0.010771,92895.0,92888.0,0.02802334]
[1767767455054,0.010771,92899.0,92888.0,0.02802334]
[1767767455251,0.010771,92902.0,92888.0,0.02802334]
[1767767456358,0.010771,92902.0,92889.0,0.02802334]
[1767767456553,0.09156,92903.0,92889.0,0.02802334]
[1767767460761,0.09156,92903.0,92888.0,0.095472]
[1767767461465,0.09156,92903.0,92888.0,0.12349534]
[1767767461653,0.09156,92903.0,92889.0,0.03291789]
[1767767466165,0.09156,92903.0,92888.0,0.095472]
[1767767468569,0.09156,92903.0,92886.0,0.03213325]
[1767767469270,0.010771,92902.0,92886.0,0.03213325]
[1767767470069,0.03245006,92900.0,92884.0,0.09156]
[1767767471160,0.010771,92896.0,92884.0,0.09156]
[1767767471561,0.010771,92899.0,92884.0,0.09156]
[1767767471860,0.010771,92897.0,92884.0,0.09156]
[1767767472670,0.03245006,92900.0,92884.0,0.09156]
[1767767474170,0.010771,92899.0,92884.0,0.09156]
[1767767476074,0.010771,92897.0,92884.0,0.09156]
[1767767476261,0.010771,92895.0,92884.0,0.09156]
[1767767476768,0.09964757,92901.0,92882.0,0.03213325]
[1767767476969,0.010772,92888.0,92881.0,0.05914974]
[1767767477167,0.09964757,92891.0,92875.0,0.09156]
[1767767477366,0.010771,92900.0,92875.0,0.09156]
[1767767477567,0.010771,92900.0,92875.0,0.28592055]
[1767767477764,0.010771,92900.0,92876.0,0.03213325]
[1767767478372,0.010771,92900.0,92876.0,0.13019352]
[1767767478576,0.010772,92891.0,92876.0,0.13019352]
[1767767478873,0.010772,92891.0,92877.0,0.09156]
[1767767479068,0.010772,92891.0,92878.0,0.09156]
[1767767482481,0.010772,92889.0,92878.0,0.09156]
[1767767482681,0.03245006,92898.0,92878.0,0.09156]
[1767767483281,0.13209763,92898.0,92878.0,0.09156]
[1767767483579,0.03245006,92897.0,92878.0,0.09156]
[1767767484177,0.03245006,92897.0,92878.0,0.12369325]
[1767767484178,0.010772,92889.0,92878.0,0.12369325]
[1767767484381,0.09964757,92898.0,92879.0,0.13019352]
[1767767484682,0.010772,92887.0,92879.0,0.09806027]
[1767767484870,0.03245006,92897.0,92879.0,0.09806027]
[1767767485072,0.010772,92886.0,92879.0,0.09806027]
[1767767485272,0.03245006,92897.0,92879.0,0.09806027]
[1767767485466,0.010772,92889.0,92879.0,0.09806027]
[1767767485680,0.010772,92887.0,92874.0,0.06020493]
[1767767485875,0.010773,92885.0,92873.0,0.22175352]
[1767767486186,0.03245006,92894.0,92875.0,0.16116909]
[1767767486377,0.03245006,92894.0,92874.0,0.19330234]
[1767767486572,0.03245006,92894.0,92874.0,0.13019352]
[1767767486774,0.03245006,92894.0,92875.0,0.19362786]
[1767767487182,0.010773,92885.0,92875.0,0.19362786]
[1767767487367,0.03245006,92894.0,92876.0,0.03213325]
[1767767487573,0.010772,92886.0,92876.0,0.13019352]
[1767767487786,0.010772,92886.0,92877.0,0.13019352]
[1767767488380,0.010772,92892.0,92882.0,0.13019352]
[1767767493989,0.010772,92892.0,92884.0,0.03249576]
[1767767494188,0.010771,92895.0,92887.0,0.09694585]
[1767767494489,0.010771,92899.0,92892.0,0.03249576]
[1767767495086,0.010771,92897.0,92892.0,0.12944161]
[1767767495291,0.010771,92897.0,92892.0,0.09694585]
[1767767495476,0.00215266,92909.0,92892.0,0.12944161]
[1767767495681,0.00215266,92909.0,92873.0,0.14978533]
[1767767495682,0.09156,92908.0,92897.0,0.12944161]
[1767767495883,0.09156,92908.0,92898.0,0.03249576]
[1767767496086,0.010769,92914.0,92905.0,0.03249576]
[1767767498291,0.010769,92914.0,92905.0,0.12944161]
[1767767499192,0.010769,92914.0,92906.0,0.03249576]
[1767767499393,0.025869,92918.0,92907.0,0.03249576]
[1767767499593,0.025869,92918.0,92908.0,0.12944161]
[1767767502491,0.03109493,92937.0,92915.0,7.6e-07]
[1767767502691,0.03109493,92933.0,92915.0,0.09694585]
[1767767502885,0.09156,92933.0,92915.0,0.09694585]
[1767767503290,0.010767,92930.0,92915.0,0.09694585]
[1767767503884,0.09156,92933.0,92915.0,0.09694585]
[1767767504183,0.00215196,92939.0,92915.0,0.09694585]
[1767767504398,0.00215196,92939.0,92917.0,0.09694585]
[1767767504593,0.010767,92930.0,92921.0,0.03249576]
[1767767504796,0.00215196,92939.0,92921.0,0.03249576]
[1767767505495,0.010767,92932.0,92923.0,0.03249576]
[1767767505700,0.010767,92936.0,92923.0,0.03249576]
[1767767505896,0.010767,92933.0,92923.0,0.03249576]
[1767767506199,0.010767,92933.0,92924.0,0.03249576]
[1767767509893,0.010767,92933.0,92925.0,0.03249576]
[1767767510899,0.010767,92933.0,92916.0,0.15095921]
[1767767511205,0.010767,92930.0,92921.0,0.03249576]
[1767767511499,0.010768,92928.0,92920.0,0.09105312]
[1767767511700,0.03109493,92938.0,92920.0,0.09105312]
[1767767511898,0.12947277,92932.0,92920.0,3.6e-07]
[1767767512095,0.010768,92928.0,92916.0,0.05939921]
[1767767512296,0.010768,92928.0,92912.0,0.12401576]
[1767767512495,0.010768,92928.0,92913.0,0.03249576]
[1767767514189,0.010769,92917.0,92911.0,3.5e-07]
[1767767514503,0.09837784,92928.0,92910.0,0.08526064]
[1767767514704,0.09837784,92928.0,92908.0,0.03249576]
[1767767515002,0.09837784,92928.0,92909.0,0.16153992]
[1767767515190,0.09837784,92928.0,92909.0,0.19403568]
[1767767515392,0.010769,92918.0,92909.0,0.16153992]
[1767767515590,0.010769,92913.0,92900.0,0.05961209]
[1767767515794,0.01077,92910.0,92897.0,0.03249576]
[1767767515990,0.03109493,92917.0,92898.0,0.03249576]
[1767767516194,0.09837784,92918.0,92900.0,0.09105312]
[1767767516394,0.09837784,92918.0,92900.0,0.12354888]
[1767767516594,0.010769,92914.0,92901.0,0.03249576]
[1767767517295,0.010769,92914.0,92902.0,0.03249576]
[1767767517495,0.010719,92914.0,92902.0,0.03249576]
[1767767517995,0.010769,92912.0,92902.0,0.03249576]
[1767767518596,0.09152,92920.0,92902.0,0.03249576]
[1767767519804,0.01077,92907.0,92901.0,0.08756043]
[1767767520107,0.03708534,92917.0,92900.0,0.09105312]
[1767767520405,0.09584471,92918.0,92900.0,0.09105312]
[1767767520707,0.01077,92909.0,92900.0,0.09105312]
[1767767520907,0.09584471,92918.0,92900.0,0.09105312]
[1767767521106,0.09584471,92918.0,92899.0,0.09105312]
[1767767521307,0.09584471,92918.0,92899.0,0.17864142]
[1767767521605,0.09584471,92918.0,92900.0,0.16195778]
[1767767521806,0.09584471,92918.0,92900.0,0.19811831]
[1767767522306,0.01077,92909.0,92900.0,0.19811831]
[1767767522507,0.09584471,92918.0,92901.0,0.03616053]
[1767767523010,0.01077,92910.0,92901.0,0.03616053]
[1767767526206,0.09152,92920.0,92905.0,0.03616053]
[1767767526400,0.09152,92920.0,92906.0,0.03616053]
[1767767526600,0.010769,92918.0,92905.0,0.09710591]
[1767767526799,0.010769,92916.0,92900.0,0.22431956]
[1767767527022,0.010769,92916.0,92901.0,0.03616053]
[1767767527410,0.1364614,92917.0,92899.0,0.0875883]
[1767767527604,0.01077,92910.0,92900.0,0.09105312]
[1767767527802,0.01077,92910.0,92900.0,0.25249028]
[1767767527997,0.010769,92913.0,92900.0,0.28865081]
[1767767528306,0.010769,92917.0,92903.0,0.03616053]
[1767767528505,0.010769,92915.0,92903.0,0.03616053]
[1767767529505,0.010769,92919.0,92904.0,0.03616053]
[1767767529706,0.010769,92919.0,92910.0,0.09100312]
[1767767530104,0.09152,92920.0,92910.0,0.09100312]
[1767767530309,0.09152,92920.0,92911.0,0.03616053]
[1767767531808,0.010769,92919.0,92911.0,0.03616053]
[1767767532203,0.010769,92919.0,92910.0,0.09105312]
[1767767532409,0.010769,92919.0,92908.0,0.09710591]
[1767767532618,0.010769,92919.0,92902.0,0.03616053]
[1767767532818,0.010769,92919.0,92903.0,0.03616053]
[1767767533218,0.010769,92919.0,92903.0,0.13326644]
[1767767533418,0.010769,92919.0,92904.0,0.03616053]
[1767767533620,0.010769,92917.0,92900.0,0.12721365]
[1767767533813,0.010769,92917.0,92901.0,0.03616053]
[1767767534120,0.010769,92917.0,92902.0,0.03616053]
[1767767534312,0.010769,92917.0,92903.0,0.03616053]
[1767767535422,0.09152,92920.0,92903.0,0.03616053]
[1767767535722,0.09152,92920.0,92902.0,0.09710591]
[1767767535916,0.12807537,92920.0,92900.0,0.12721365]
[1767767536414,0.12807537,92920.0,92901.0,0.03616053]
[1767767536815,0.010769,92913.0,92901.0,0.03616053]
[1767767537722,0.01077,92911.0,92901.0,0.03616053]
[1767767538024,0.12807537,92920.0,92901.0,0.03616053]
[1767767538323,0.010769,92911.0,92901.0,0.03616053]
[1767767538523,0.12807537,92920.0,92901.0,0.03616053]
[1767767538724,0.010769,92912.0,92901.0,0.03616053]
[1767767540012,0.010769,92915.0,92901.0,0.03616053]
[1767767542038,0.01077,92910.0,92899.0,0.08695927]
[1767767542224,0.03655537,92912.0,92899.0,0.09152]
[1767767542523,0.09990603,92914.0,92900.0,0.16233563]
[1767767542719,0.01077,92908.0,92896.0,0.03616053]
[1767767542928,0.1364614,92913.0,92896.0,0.09152]
[1767767543132,0.01077,92907.0,92900.0,0.16093211]
[1767767543331,0.1364614,92913.0,92897.0,0.16093211]
[1767767543629,0.1364614,92913.0,92897.0,0.08798634]
[1767767543826,0.03655537,92909.0,92897.0,0.16171749]
[1767767544031,0.1364614,92902.0,92887.0,0.09152]
[1767767544330,0.010771,92894.0,92887.0,0.09152]
[1767767544625,0.03655537,92901.0,92887.0,0.09152]
[1767767544821,0.010771,92896.0,92887.0,0.09152]
[1767767545217,0.1364614,92900.0,92887.0,0.09152]
[1767767545523,0.010772,92892.0,92881.0,0.09152]
[1767767545726,0.1364614,92900.0,92881.0,0.09152]
[1767767546028,0.1364614,92900.0,92882.0,0.16053322]
[1767767546424,0.010772,92889.0,92882.0,0.16053322]
[1767767546726,0.03655537,92896.0,92879.0,0.09367335]
[1767767547027,0.03655537,92896.0,92882.0,0.16045316]
[1767767547328,0.03655537,92896.0,92880.0,0.09105312]
[1767767547628,0.03655537,92896.0,92881.0,0.1616162]
[1767767547928,0.03655537,92896.0,92880.0,0.1616162]
[1767767547929,0.1364614,92896.0,92880.0,0.1616162]
[1767767548319,0.010772,92888.0,92879.0,0.09001026]
[1767767548925,0.010772,92886.0,92873.0,0.09152]
[1767767549323,0.010772,92886.0,92877.0,0.16181023]
[1767767549620,0.1364614,92889.0,92873.0,0.09152]
[1767767549820,0.03655537,92886.0,92867.0,0.09392749]
[1767767550031,0.1364614,92884.0,92874.0,9.1e-07]
[1767767550233,0.1364614,92884.0,92868.0,0.16043791]
[1767767550417,0.12760849,92880.0,92867.0,9.1e-07]
[1767767550622,0.010774,92872.0,92861.0,0.09160281]
[1767767551130,0.010774,92872.0,92861.0,8.281e-05]
[1767767552536,0.010774,92869.0,92861.0,8.281e-05]
[1767767553732,0.13861282,92877.0,92861.0,8.281e-05]
[1767767553933,0.13861282,92876.0,92861.0,8.281e-05]
[1767767554930,0.010774,92868.0,92861.0,8.281e-05]
[1767767557838,0.09156,92878.0,92857.0,6.9e-07]
[1767767557839,0.13861282,92875.0,92857.0,6.9e-07]
[1767767558030,0.0464926,92853.0,92834.0,0.09156]
[1767767558340,0.010777,92848.0,92835.0,0.160882]
[1767767558528,0.010776,92852.0,92838.0,0.09105312]
[1767767558927,8.281e-05,92851.0,92839.0,0.16199478]
[1767767559532,8.281e-05,92851.0,92837.0,0.16199478]
[1767767559730,8.281e-05,92851.0,92840.0,0.09105312]
[1767767559935,0.010777,92850.0,92837.0,0.16199478]
[1767767560138,0.0572696,92850.0,92834.0,0.19385189]
[1767767560322,0.010777,92850.0,92834.0,0.19385189]
[1767767560528,8.281e-05,92851.0,92835.0,0.16252734]
[1767767560529,0.010777,92847.0,92835.0,0.16252734]
[1767767560830,0.04657541,92851.0,92835.0,0.16252734]
[1767767561032,0.14947263,92851.0,92840.0,0.09105312]
[1767767561629,0.01085981,92851.0,92840.0,0.09105312]
[1767767563033,0.01085981,92851.0,92836.0,0.02985689]
[1767767563432,0.01085981,92851.0,92837.0,0.02915604]
[1767767564730,0.01085981,92851.0,92840.0,0.09105312]
[1767767566538,0.01085981,92851.0,92837.0,0.02915604]
[1767767567441,0.010777,92848.0,92837.0,0.02915604]
[1767767568440,0.010777,92848.0,92834.0,0.19385189]
[1767767568841,0.010777,92848.0,92836.0,0.16190071]
[1767767569140,0.010777,92848.0,92834.0,0.19385189]
[1767767569443,0.010777,92848.0,92835.0,0.16190071]
[1767767572943,0.010777,92848.0,92835.0,0.18646233]
[1767767573144,0.010777,92848.0,92836.0,0.02456162]
[1767767573442,0.010777,92848.0,92837.0,0.16129793]
[1767767574245,8.281e-05,92851.0,92838.0,0.11959064]
[1767767574434,0.0464926,92867.0,92845.0,0.02351615]
[1767767574744,0.23021282,92866.0,92845.0,0.02351615]
[1767767574928,0.010776,92855.0,92845.0,0.02351615]
[1767767575332,0.010776,92855.0,92844.0,0.09599168]
[1767767575728,0.010776,92855.0,92834.0,0.19385189]
[1767767575729,0.010776,92855.0,92840.0,0.02382757]
[1767767575941,0.010776,92853.0,92840.0,0.02382757]
[1767767576439,0.0916,92866.0,92851.0,0.09599168]
[1767767576440,0.010775,92863.0,92851.0,0.09599168]
[1767767576638,0.010775,92863.0,92834.0,0.19385189]
[1767767576639,0.010774,92876.0,92856.0,0.11932337]
[1767767576940,0.010772,92892.0,92847.0,0.010777]
[1767767576941,0.010774,92873.0,92860.0,0.02333169]
[1767767577128,0.0916,92878.0,92860.0,0.02333169]
[1767767577329,0.0464926,92876.0,92856.0,0.02032197]
[1767767577532,0.010775,92865.0,92853.0,0.09599168]
[1767767578146,0.010775,92865.0,92853.0,0.11631365]
[1767767578838,0.0464926,92872.0,92853.0,0.11631365]
[1767767578839,0.010774,92869.0,92853.0,0.11631365]
[1767767580941,0.010775,92866.0,92853.0,0.11631365]
[1767767581146,0.010774,92870.0,92853.0,0.11631365]
[1767767581746,0.010775,92867.0,92852.0,0.0916]
[1767767582345,0.010775,92867.0,92849.0,0.02056082]
[1767767582733,0.010775,92867.0,92850.0,0.0916]
[1767767583446,0.14029424,92865.0,92849.0,0.0916]
[1767767583634,0.09857883,92865.0,92849.0,0.0916]
[1767767583945,0.010775,92866.0,92850.0,0.01935029]
[1767767585548,0.010775,92864.0,92850.0,0.01935029]
[1767767586047,0.010775,92861.0,92850.0,0.01935029]
[1767767587453,0.04171541,92869.0,92849.0,0.0916]
[1767767587750,0.010777,92849.0,92836.0,0.0916]
[1767767588053,0.04171541,92855.0,92837.0,0.16135635]
[1767767589250,0.010777,92849.0,92837.0,0.16135635]
[1767767589450,0.04171541,92855.0,92837.0,0.16135635]
[1767767589747,0.04171541,92854.0,92837.0,0.16135635]
[1767767590138,0.010777,92847.0,92837.0,0.16135635]
[1767767590337,0.04171541,92851.0,92837.0,0.16135635]
[1767767590538,0.010777,92847.0,92835.0,0.16207652]
[1767767590750,0.010777,92843.0,92833.0,0.0916]
[1767767590949,0.04171541,92849.0,92833.0,0.17934542]
[1767767591747,0.09857883,92850.0,92833.0,0.19464504]
[1767767593155,0.010777,92846.0,92833.0,0.17934542]
[1767767593454,0.14029424,92850.0,92833.0,0.17934542]
[1767767594148,0.010777,92845.0,92833.0,0.17934542]
[1767767599451,0.010778,92839.0,92830.0,0.015]
[1767767599662,0.010778,92837.0,92830.0,0.01281124]
[1767767600246,0.010778,92834.0,92830.0,2.4e-07]
[1767767600442,0.14029424,92843.0,92830.0,2.4e-07]
[1767767600652,0.010779,92833.0,92830.0,2.4e-07]
[1767767600953,0.04171541,92842.0,92830.0,2.4e-07]
[1767767601153,0.010778,92836.0,92830.0,2.4e-07]
[1767767601950,0.010779,92834.0,92830.0,2.4e-07]
[1767767603054,0.04171541,92842.0,92830.0,2.4e-07]
[1767767603258,0.010779,92834.0,92830.0,2.4e-07]
[1767767605161,0.010778,92837.0,92830.0,2.4e-07]
[1767767605354,0.04171541,92846.0,92830.0,2.4e-07]
[1767767605551,0.010778,92838.0,92830.0,2.4e-07]
[1767767607856,0.010778,92836.0,92830.0,2.4e-07]
[1767767608065,0.09857883,92843.0,92830.0,2.4e-07]
[1767767608466,0.04171541,92842.0,92830.0,2.4e-07]
[1767767608957,0.14029424,92841.0,92830.0,2.4e-07]
[1767767609548,0.09857883,92847.0,92830.0,0.00629188]
[1767767609851,0.0916,92846.0,92830.0,0.00629188]
[1767767610563,0.010777,92845.0,92830.0,0.00629188]
[1767767610765,0.0916,92847.0,92834.0,0.00585094]
[1767767611066,0.0916,92854.0,92838.0,7.712e-05]
[1767767611357,0.010776,92851.0,92838.0,7.712e-05]
[1767767611566,0.010777,92848.0,92838.0,7.712e-05]
[1767767612061,0.010777,92848.0,92832.0,0.00340577]
[1767767614466,0.010776,92852.0,92832.0,0.00340577]
[1767767614661,0.010777,92850.0,92832.0,0.00340577]
[1767767615363,0.10118885,92850.0,92832.0,0.00340577]
[1767767618471,0.010777,92848.0,92832.0,0.00340577]
[1767767618668,0.09041185,92850.0,92832.0,0.00340577]
[1767767618874,0.09041185,92849.0,92830.0,2.4e-07]
[1767767619566,0.09041185,92849.0,92830.0,0.06065305]
[1767767619765,0.09041185,92849.0,92830.0,2.4e-07]
[1767767620167,0.010777,92846.0,92830.0,2.4e-07]
[1767767620373,0.09041185,92849.0,92830.0,2.4e-07]
[1767767620573,0.010777,92846.0,92830.0,2.4e-07]
[1767767620875,0.09041185,92849.0,92830.0,2.4e-07]
[1767767621077,0.03966676,92850.0,92830.0,2.4e-07]
[1767767621673,0.010777,92849.0,92830.0,2.4e-07]
[1767767625372,0.13007861,92841.0,92830.0,2.4e-07]
[1767767625580,0.010778,92842.0,92831.0,0.0916]
[1767767625764,0.010776,92854.0,92831.0,0.0916]
[1767767627179,0.010778,92842.0,92831.0,0.0916]
[1767767627379,0.010776,92854.0,92831.0,0.0916]
[1767767627681,0.13007861,92848.0,92831.0,0.0916]
[1767767627979,0.03966676,92839.0,92830.0,0.09123779]
[1767767628180,0.010776,92854.0,92830.0,0.09123779]
[1767767628480,0.010778,92840.0,92830.0,2.4e-07]
[1767767628679,0.010778,92840.0,92824.0,0.08588277]
[1767767628882,0.010777,92843.0,92830.0,0.04772777]
[1767767629073,0.010777,92843.0,92833.0,0.09123755]
[1767767629880,0.010777,92843.0,92830.0,0.09123755]
[1767767630380,0.010777,92843.0,92828.0,0.26047986]
[1767767630580,0.010777,92843.0,92830.0,0.09123755]
[1767767632775,0.010777,92843.0,92832.0,0.14109169]
[1767767633082,0.010777,92843.0,92833.0,0.14109169]
[1767767633782,0.010777,92843.0,92833.0,0.09997494]
[1767767638288,0.03966676,92841.0,92824.0,0.08612634]
[1767767638483,0.03966676,92840.0,92820.0,0.0916]
[1767767638788,0.010778,92834.0,92820.0,0.18283755]
[1767767638988,0.03966676,92838.0,92820.0,0.18283755]
[1767767639190,0.010778,92834.0,92820.0,0.10565463]
[1767767639489,0.03966676,92838.0,92820.0,0.19689218]
[1767767639783,0.03966676,92838.0,92820.0,0.20210925]
[1767767639993,0.03966676,92838.0,92820.0,0.335789]
[1767767640287,0.010778,92834.0,92820.0,0.335789]
[1767767640490,0.03966676,92838.0,92820.0,0.335789]
[1767767640883,0.010778,92837.0,92822.0,0.09645462]
[1767767641088,0.010778,92837.0,92823.0,0.13889682]
[1767767642089,0.010778,92840.0,92825.0,0.13859854]
[1767767642292,0.13890383,92853.0,92832.0,0.13859854]
[1767767642591,0.010778,92838.0,92832.0,0.13859854]
[1767767642788,0.04306804,92851.0,92832.0,0.13859854]
[1767767643285,0.010778,92840.0,92832.0,0.13859854]
[1767767644697,0.05384504,92850.0,92832.0,0.13859854]
[1767767645014,0.04306804,92849.0,92832.0,0.09484529]
[1767767646086,0.010778,92838.0,92832.0,0.09484529]
[1767767646395,0.04306804,92849.0,92832.0,0.09484529]
[1767767646698,0.010778,92839.0,92832.0,0.09484529]
[1767767649499,0.010778,92837.0,92832.0,0.09484529]
[1767767649799,0.04306804,92849.0,92832.0,0.09484529]
[1767767650186,0.010778,92839.0,92832.0,0.09484529]
[1767767654499,0.010778,92837.0,92832.0,0.09484529]
[1767767654802,0.13430559,92850.0,92832.0,0.09484529]
[1767767655903,0.010777,92849.0,92832.0,0.09484529]
[1767767657401,0.010778,92838.0,92832.0,0.09484529]
[1767767658201,0.010778,92836.0,92832.0,2.9e-07]
[1767767658501,0.010777,92849.0,92832.0,2.9e-07]
[1767767659402,0.010778,92838.0,92832.0,2.9e-07]
[1767767660507,0.010778,92838.0,92830.0,0.04375325]
[1767767665912,0.04306804,92850.0,92831.0,0.04375325]
[1767767666103,0.0916,92852.0,92832.0,0.04375325]
[1767767666407,0.010778,92842.0,92832.0,0.04375325]
[1767767667813,0.0916,92852.0,92835.0,0.04375325]
[1767767669209,0.010777,92843.0,92835.0,0.04375325]
[1767767671909,0.010777,92846.0,92835.0,0.04375325]
[1767767673010,0.0916,92852.0,92835.0,0.04375325]
[1767767674213,0.010777,92844.0,92835.0,0.04375325]
[1767767678219,0.0916,92852.0,92835.0,0.04375325]
[1767767678220,0.010778,92841.0,92835.0,0.04375325]
[1767767678517,0.04195996,92849.0,92826.0,0.09071842]
[1767767678712,0.04195996,92848.0,92826.0,0.09071842]
[1767767679909,0.0916,92847.0,92826.0,0.09071842]
[1767767680218,0.010778,92838.0,92826.0,0.09071842]
[1767767680421,0.0916,92847.0,92826.0,0.09071842]
[1767767680721,0.0916,92847.0,92828.0,0.04161196]
[1767767681111,0.010778,92840.0,92829.0,0.04161196]
[1767767681517,0.010778,92840.0,92830.0,0.04161196]
[1767767682421,0.010778,92840.0,92830.0,0.13284951]
[1767767683222,0.010778,92840.0,92831.0,0.04161196]
[1767767684322,0.0916,92847.0,92831.0,0.04161196]
[1767767684525,0.010778,92841.0,92832.0,0.04161196]
[1767767685620,0.010778,92839.0,92832.0,0.04161196]
[1767767688724,0.010778,92837.0,92832.0,0.04161196]
[1767767688924,0.0916,92847.0,92832.0,0.04161196]
[1767767689129,0.0916,92847.0,92831.0,0.09071842]
[1767767689930,0.010778,92838.0,92831.0,0.09071842]
[1767767690129,0.0916,92847.0,92831.0,0.09071842]
[1767767692134,0.010778,92839.0,92831.0,0.09071842]
[1767767696642,0.010778,92837.0,92831.0,0.09071842]
[1767767696939,0.0916,92847.0,92831.0,0.09071842]
[1767767697634,0.0916,92847.0,92832.0,0.04161196]
[1767767698433,0.04195996,92845.0,92825.0,0.0916]
[1767767699244,0.010778,92837.0,92825.0,0.0916]
[1767767699541,0.04195996,92845.0,92825.0,0.13293917]
[1767767699744,0.04195996,92845.0,92826.0,0.04133917]
[1767767700436,0.09873872,92846.0,92827.0,0.04133917]
[1767767700638,0.010778,92842.0,92827.0,0.04133917]
[1767767700939,0.010778,92840.0,92828.0,0.13199213]
[1767767701146,0.010778,92840.0,92830.0,0.04133917]
[1767767705349,0.010778,92840.0,92831.0,0.03766039]
[1767767705841,0.13162125,92847.0,92827.0,0.03766039]
[1767767706043,0.04002125,92861.0,92839.0,0.03766039]
[1767767706248,0.0916,92860.0,92842.0,0.03766039]
[1767767706434,0.010776,92859.0,92849.0,0.03766039]
[1767767706634,0.010776,92859.0,92850.0,0.03766039]
[1767767707134,0.010776,92857.0,92850.0,0.03766039]
[1767767707339,0.0916,92860.0,92850.0,0.03766039]
[1767767707544,0.010776,92851.0,92840.0,0.09541348]
[1767767707854,0.09112154,92859.0,92836.0,0.12926039]